fUST/lending_fUST_20240707
["ID","MTS","AMOUNT","RATE_DAILY","PERIOD"]
[331404758,1720347132303,-500.0,0.00045479,120]
[331404759,1720347132313,-1343.21,0.00045479,120]
[331404760,1720347132323,-500.0,0.00045479,120]
[331404761,1720347132332,-500.0,0.00045479,120]
[331404762,1720347132342,-500.0,0.00045479,120]
[331404763,1720347132352,-500.0,0.00045479,120]
[331404764,1720347132362,-500.0,0.00045479,120]
[331404765,1720347132372,-500.0,0.00045479,120]
[331404766,1720347132382,-500.0,0.00045479,120]
[331404767,1720347132392,-500.0,0.00045479,120]
[331404768,1720347132402,-482.7232095,0.00045479,120]
[331404769,1720347132412,-500.0,0.00045479,120]
[331404770,1720347132421,-500.0,0.00045479,120]
[331404771,1720347132431,-933.38,0.00045479,120]
[331404772,1720347132443,-538.12,0.00045479,120]
[331404773,1720347132456,-500.0,0.00045479,120]
[331404774,1720347132466,-500.0,0.00045479,120]
[331404775,1720347132476,-500.0,0.00045479,120]
[331404776,1720347132485,-500.0,0.00045479,120]
[331404777,1720347132495,-500.0,0.00045479,120]
[331404778,1720347132505,-500.0,0.00045479,120]
[331404779,1720347132515,-500.0,0.00045479,120]
[331404780,1720347132524,-1587.98,0.00045479,120]
[331404781,1720347132534,-563.27783062,0.00045479,120]
[331404782,1720347132544,-645.75,0.00045479,120]
[331404783,1720347132555,-500.0,0.00045479,120]
[331404784,1720347132565,-500.0,0.00045479,120]
[331404785,1720347132575,-1804.61,0.00045479,120]
[331404786,1720347132585,-500.0,0.00045479,120]
[331404787,1720347132595,-1400.55,0.00045479,120]
[331404788,1720347132605,-500.0,0.00045479,120]
[331404789,1720347132616,-764.78,0.00045479,120]
[331404790,1720347132626,-638.28,0.00045479,120]
[331404791,1720347132636,-500.0,0.00045479,120]
[331404792,1720347132646,-993.07,0.00045479,120]
[331404793,1720347132656,-500.0,0.00045479,120]
[331404794,1720347132665,-879.0,0.00045479,120]
[331404795,1720347132675,-588.18195337,0.00045479,120]
[331404796,1720347132685,-1084.46,0.00045479,120]
[331404797,1720347132695,-2280.31,0.00045479,120]
[331404798,1720347132706,-506.68,0.00045479,120]
[331404799,1720347132716,-1460.56,0.00045479,120]
[331404800,1720347132726,-500.0,0.00045479,120]
[331404801,1720347132738,-1174.74,0.00045479,120]
[331404802,1720347132748,-500.0,0.00045479,120]
[331404803,1720347132760,-500.0,0.00045479,120]
[331404804,1720347132771,-500.0,0.00045479,120]
[331404805,1720347132781,-547.7,0.00045479,120]
[331404806,1720347132792,-500.0,0.00045479,120]
[331404807,1720347132804,-1275.26,0.00045479,120]
[331404808,1720347132814,-500.0,0.00045479,120]
[331404809,1720347132824,-620.89,0.00045479,120]
[331404810,1720347132835,-2777.24,0.00045479,120]
[331404811,1720347132845,-500.0,0.00045479,120]
[331404812,1720347132855,-608.36,0.00045479,120]
[331404813,1720347132865,-590.79,0.00045479,120]
[331404814,1720347132877,-500.0,0.00045479,120]
[331404815,1720347132887,-594.16302118,0.00045479,120]
[331404816,1720347132897,-500.0,0.00045479,120]
[331404817,1720347132907,-33955.97,0.00045479,120]
[331404818,1720347132916,-1229.15,0.00045479,120]
[331404819,1720347132926,-500.0,0.00045479,120]
[331404820,1720347132936,-620.32,0.00045479,120]
[331404821,1720347132947,-500.0,0.00045479,120]
[331404822,1720347132957,-1166.72,0.00045479,120]
[331404823,1720347132968,-1466.22,0.00045479,120]
[331404824,1720347132978,-529.53,0.00045479,120]
[331404825,1720347132987,-500.0,0.00045479,120]
[331404826,1720347132997,-500.0,0.00045479,120]
[331404827,1720347133007,-500.0,0.00045479,120]
[331404828,1720347133017,-500.0,0.00045479,120]
[331404829,1720347133026,-1741.41,0.00045479,120]
[331404830,1720347133036,-500.0,0.00045479,120]
[331404831,1720347133046,-500.0,0.00045479,120]
[331404832,1720347133056,-500.0,0.00045479,120]
[331404833,1720347133065,-500.0,0.00045479,120]
[331404834,1720347133075,-500.0,0.00045479,120]
[331404835,1720347133085,-1189.37,0.00045479,120]
[331404836,1720347133095,-500.0,0.00045479,120]
[331404837,1720347133105,-500.0,0.00045479,120]
[331404838,1720347133117,-500.0,0.00045479,120]
[331404839,1720347133128,-500.0,0.00045479,120]
[331404840,1720347133139,-500.0,0.00045479,120]
[331404841,1720347133150,-844.82,0.00045479,120]
[331404842,1720347133161,-500.0,0.00045479,120]
[331404843,1720347133171,-500.0,0.00045479,120]
[331404844,1720347133183,-500.0,0.00045479,120]
[331404845,1720347133193,-1360.1,0.00045479,120]
[331404846,1720347133203,-731.34,0.00045479,120]
[331404847,1720347133384,-500.0,0.00045479,120]
[331404848,1720347133395,-1297.58,0.00045479,120]
[331404849,1720347133405,-500.0,0.00045479,120]
[331404850,1720347133415,-500.0,0.00045479,120]
[331404851,1720347133424,-500.0,0.00045479,120]
[331404852,1720347133435,-1170.99,0.00045479,120]
[331404853,1720347133445,-1090.22,0.00045479,120]
[331404854,1720347133454,-2155.79,0.00045479,120]
[331404855,1720347133465,-564.97,0.00045479,120]
[331404856,1720347133475,-500.0,0.00045479,120]
[331404857,1720347133484,-500.0,0.00045479,120]
[331404858,1720347133493,-990.62,0.00045479,120]
[331404859,1720347133503,-17957.62,0.00045479,120]
[331404860,1720347133513,-760.13,0.00045479,120]
[331404861,1720347133523,-500.0,0.00045479,120]
[331404862,1720347133533,-1274.08,0.00045479,120]
[331404863,1720347133543,-500.0,0.00045479,120]
[331404864,1720347133553,-806.21,0.00045479,120]
[331404865,1720347133563,-500.0,0.00045479,120]
[331404866,1720347133573,-500.0,0.00045479,120]
[331404867,1720347133583,-834.54,0.00045479,120]
[331404868,1720347133593,-555.67,0.00045479,120]
[331404869,1720347133603,-886.97,0.00045479,120]
[331404870,1720347133613,-19633.38,0.00045479,120]
[331404871,1720347133623,-500.0,0.00045479,120]
[331404872,1720347133633,-500.0,0.00045479,120]
[331404873,1720347133643,-868.77,0.00045479,120]
[331404874,1720347133652,-997.77,0.00045479,120]
[331404875,1720347133663,-1022.9,0.00045479,120]
[331404876,1720347133672,-686.48,0.00045479,120]
[331404877,1720347133682,-3272.31,0.00045479,120]
[331404878,1720347133693,-500.0,0.00045479,120]
[331404879,1720347133703,-500.0,0.00045479,120]
[331404880,1720347133713,-500.0,0.00045479,2]
[331404881,1720347133723,-500.0,0.00045479,120]
[331404882,1720347133732,-764.61,0.00045479,120]
[331404883,1720347133742,-500.0,0.00045479,120]
[331404884,1720347133751,-500.0,0.00045479,120]
[331404885,1720347133762,-500.0,0.00045479,120]
[331404886,1720347133771,-500.0,0.00045479,120]
[331404887,1720347133781,-515.08,0.00045479,120]
[331404888,1720347133796,-500.0,0.00045479,120]
[331404889,1720347133807,-539.31,0.00045479,120]
[331404890,1720347133818,-1472.32,0.00045479,7]
[331404891,1720347133828,-500.0,0.00045479,120]
[331404892,1720347133840,-529.59,0.00045479,120]
[331404893,1720347133850,-2352.27,0.00045479,120]
[331404894,1720347133860,-777.74,0.00045479,120]
[331404895,1720347133871,-500.0,0.00045479,120]
[331404896,1720347133883,-500.0,0.00045479,120]
[331404897,1720347133893,-500.0,0.00045479,120]
[331404898,1720347133903,-671.8,0.00045479,120]
[331404899,1720347133913,-2174.43,0.00045479,120]
[331404900,1720347133923,-780.73,0.00045479,120]
[331404901,1720347133933,-6995.33,0.00045479,120]
[331404902,1720347133946,-1875.52,0.00045479,120]
[331404903,1720347133956,-1180.04,0.00045479,120]
[331404904,1720347133967,-500.6,0.00045479,120]
[331404905,1720347133976,-339.09938669,0.00045479,120]
[331404906,1720347133986,-500.0,0.00045479,120]
[331404907,1720347133996,-1990.29,0.00045479,120]
[331404908,1720347134006,-500.0,0.00045479,120]
[331404909,1720347134016,-500.0,0.00045479,120]
[331404910,1720347134026,-500.0,0.00045479,120]
[331404911,1720347134035,-1014.07,0.00045479,120]
[331404912,1720347134045,-630.37202126,0.00045479,120]
[331404913,1720347134055,-1365.67,0.00045479,120]
[331404914,1720347134063,-500.0,0.00045479,120]
[331404915,1720347134073,-668.62,0.00045479,120]
[331404916,1720347134082,-500.0,0.00045479,120]
[331404917,1720347134092,-693.64,0.00045479,120]
[331404918,1720347134101,-67758.47,0.00045479,120]
[331404919,1720347134111,-627.2,0.00045479,120]
[331404920,1720347134124,-800.11,0.00045479,120]
[331404921,1720347134134,-5309.62,0.00045479,120]
[331404922,1720347134144,-1034.58,0.00045479,120]
[331404923,1720347134153,-1285.7,0.00045479,120]
[331404924,1720347134163,-2445.93,0.00045479,120]
[331404925,1720347134172,-508.27,0.00045479,120]
[331404926,1720347134181,-277.01729115,0.00045479,120]
[331404927,1720347134192,-1752.72,0.00045479,120]
[331404928,1720347134202,-500.0,0.00045479,120]
[331404929,1720347134211,-11051.01,0.00045479,120]
[331404930,1720347134220,-8208.23,0.00045479,120]
[331404931,1720347134229,-500.0,0.00045479,120]
[331404932,1720347134238,-500.0,0.00045479,120]
[331404933,1720347134248,-4429.83,0.00045479,120]
[331404934,1720347134257,-4266.09,0.00045479,120]
[331404935,1720347134266,-456.1068145,0.00045479,120]
[331404936,1720347134275,-500.0,0.00045479,120]
[331404937,1720347134284,-2704.38,0.00045479,120]
[331404938,1720347134294,-748.13,0.00045479,120]
[331404939,1720347134303,-1541.47,0.00045479,120]
[331404940,1720347134312,-924.03,0.00045479,120]
[331404941,1720347134321,-500.0,0.00045479,120]
[331404942,1720347134330,-500.0,0.00045479,120]
[331404943,1720347134339,-500.0,0.00045479,120]
[331404944,1720347134348,-500.0,0.00045479,120]
[331404945,1720347134357,-500.0,0.00045479,120]
[331404946,1720347134366,-844.26,0.00045479,120]
[331404947,1720347134375,-500.0,0.00045479,120]
[331404948,1720347134384,-12793.66,0.00045479,120]
[331404949,1720347134393,-500.0,0.00045479,120]
[331404950,1720347134403,-896.63,0.00045479,120]
[331404951,1720347134412,-618.83,0.00045479,120]
[331404952,1720347134421,-500.0,0.00045479,120]
[331404953,1720347134430,-7734.13,0.00045479,21]
[331404954,1720347134440,-6948.55,0.00045479,120]
[331404955,1720347134449,-2118.44,0.00045479,120]
[331404956,1720347134458,-500.0,0.00045479,120]
[331404957,1720347134468,-1280.73,0.00045479,120]
[331404958,1720347134477,-500.0,0.00045479,120]
[331404959,1720347134487,-11105.94,0.00045479,120]
[331404960,1720347134496,-984.09,0.00045479,120]
[331404961,1720347134505,-500.0,0.00045479,120]
[331404962,1720347134514,-500.0,0.00045479,120]
[331404963,1720347134524,-772.24,0.00045479,120]
[331404964,1720347134534,-6036.83,0.00045479,120]
[331404965,1720347134544,-500.0,0.00045479,120]
[331404966,1720347134554,-2113.87,0.00045479,120]
[331404967,1720347134564,-15042.94,0.00045479,120]
[331404968,1720347134574,-887.89,0.00045479,120]
[331404969,1720347134584,-500.0,0.00045479,120]
[331404970,1720347134593,-1240.73,0.00045479,120]
[331404971,1720347134603,-500.0,0.00045479,120]
[331404972,1720347134613,-500.0,0.00045479,120]
[331404973,1720347134623,-688.3,0.00045479,120]
[331404974,1720347134631,-600.4,0.00045479,120]
[331404975,1720347134640,-4477.61,0.00045479,120]
[331404976,1720347134650,-1561.9,0.00045479,120]
[331404977,1720347134659,-5599.32,0.00045479,120]
[331404978,1720347134669,-500.0,0.00045479,120]
[331404979,1720347134678,-626.43,0.00045479,120]
[331404980,1720347134689,-500.0,0.00045479,120]
[331404981,1720347134698,-2966.16,0.00045479,120]
[331404982,1720347134708,-500.0,0.00045479,120]
[331404983,1720347134717,-500.0,0.00045479,120]
[331404984,1720347134727,-757.52,0.00045479,120]
[331404985,1720347134736,-1087.62,0.00045479,120]
[331404986,1720347134746,-500.0,0.00045479,120]
[331404987,1720347134756,-667.57,0.00045479,120]
[331404988,1720347134766,-500.0,0.00045479,120]
[331404989,1720347134775,-841.97,0.00045479,120]
[331404990,1720347134786,-1485.95,0.00045479,120]
[331404991,1720347134799,-500.0,0.00045479,120]
[331404992,1720347134809,-2654.48,0.00045479,120]
[331404993,1720347134819,-2654.48,0.00045479,120]
[331404994,1720347134828,-500.0,0.00045479,120]
[331404995,1720347134839,-7224.58,0.00045479,120]
[331404996,1720347134848,-500.0,0.00045479,120]
[331404997,1720347134859,-500.0,0.00045479,120]
[331404998,1720347134869,-2906.61,0.00045479,120]
[331404999,1720347134880,-500.0,0.00045479,120]
[331405000,1720347134889,-778.38,0.00045479,120]
[331405001,1720347134899,-500.0,0.00045479,120]
[331405002,1720347134908,-641.22,0.00045479,120]
[331405003,1720347134918,-677.83,0.00045479,120]
[331405004,1720347134927,-500.0,0.00045479,120]
[331405005,1720347134937,-950.32,0.00045479,120]
[331405006,1720347134946,-500.0,0.00045479,120]
[331405007,1720347134956,-500.0,0.00045479,120]
[331405008,1720347134966,-791.08,0.00045479,120]
[331405009,1720347134976,-500.0,0.00045479,120]
[331405010,1720347134986,-4029.35,0.00045479,120]
[331405011,1720347134996,-3693.57,0.00045479,120]
[331405012,1720347135006,-1139.2,0.00045479,120]
[331405013,1720347135016,-679.83,0.00045479,120]
[331405014,1720347135026,-500.0,0.00045479,120]
[331405015,1720347135036,-500.0,0.00045479,120]
[331405016,1720347135046,-681.62,0.00045479,120]
[331405017,1720347135056,-841.38,0.00045479,120]
[331405018,1720347135065,-19997.62,0.00045479,120]
[331405019,1720347135075,-500.0,0.00045479,120]
[331405020,1720347135086,-500.0,0.00045479,120]
[331405021,1720347135098,-500.0,0.00045479,120]
[331405022,1720347135108,-1478.86,0.00045479,120]
[331405023,1720347135121,-500.0,0.00045479,120]
[331405024,1720347135133,-9165.57,0.00045479,120]
[331405025,1720347135143,-500.0,0.00045479,120]
[331405026,1720347135153,-500.0,0.00045479,120]
[331405027,1720347135163,-500.0,0.00045479,120]
[331405028,1720347135174,-500.0,0.00045479,120]
[331405029,1720347135184,-2498.75,0.00045479,120]
[331405030,1720347135194,-500.0,0.00045479,120]
[331405031,1720347135204,-500.0,0.00045479,120]
[331405032,1720347135214,-1179.34,0.00045479,120]
[331405033,1720347135223,-500.0,0.00045479,120]
[331405034,1720347135233,-808.69,0.00045479,120]
[331405035,1720347135243,-500.0,0.00045479,120]
[331405036,1720347135253,-500.0,0.00045479,120]
[331405037,1720347135263,-1048.51,0.00045479,120]
[331405038,1720347135272,-2474.14,0.00045479,120]
[331405039,1720347135282,-539.13,0.00045479,120]
[331405040,1720347135291,-500.0,0.00045479,120]
[331405041,1720347135301,-587.02,0.00045479,120]
[331405042,1720347135311,-500.0,0.00045479,120]
[331405043,1720347135321,-500.0,0.00045479,30]
[331405044,1720347135330,-500.0,0.00045479,120]
[331405045,1720347135340,-3741.22,0.00045479,120]
[331405046,1720347135350,-2000.34,0.00045479,120]
[331405047,1720347135359,-531.11,0.00045479,120]
[331405048,1720347135369,-500.0,0.00045479,120]
[331405049,1720347135379,-780.81,0.00045479,120]
[331405050,1720347135389,-500.0,0.00045479,120]
[331405051,1720347135398,-500.0,0.00045479,120]
[331405052,1720347135407,-500.0,0.00045479,120]
[331405053,1720347135417,-500.0,0.00045479,120]
[331405054,1720347135426,-500.0,0.00045479,120]
[331405055,1720347135436,-19236.53,0.00045479,120]
[331405056,1720347135446,-500.0,0.00045479,120]
[331405057,1720347135456,-3413.69,0.00045479,120]
[331405058,1720347135466,-500.0,0.00045479,120]
[331405059,1720347135476,-1121.56,0.00045479,120]
[331405060,1720347135486,-500.0,0.00045479,120]
[331405061,1720347135495,-1250.27,0.00045479,120]
[331405062,1720347135505,-500.0,0.00045479,120]
[331405063,1720347135515,-500.0,0.00045479,120]
[331405064,1720347135524,-500.0,0.00045479,120]
[331405065,1720347135534,-230.73718645,0.00045479,120]
[331405066,1720347135543,-500.0,0.00045479,120]
[331405067,1720347135555,-500.0,0.00045479,120]
[331405068,1720347135569,-734.73,0.00045479,120]
[331405069,1720347135578,-1092.13,0.00045479,120]
[331405070,1720347135588,-500.0,0.00045479,120]
[331405071,1720347135598,-1828.14,0.00045479,120]
[331405072,1720347135608,-500.0,0.00045479,120]
[331405073,1720347135618,-2409.9,0.00045479,120]
[331405074,1720347135629,-1905.14,0.00045479,120]
[331405075,1720347135639,-1746.38,0.00045479,120]
[331405076,1720347135649,-882.47,0.00045479,120]
[331405077,1720347135661,-2825.71,0.00045479,120]
[331405078,1720347135678,-500.0,0.00045479,120]
[331405079,1720347135697,-500.0,0.00045479,120]
[331405080,1720347135717,-639.95,0.00045479,120]
[331405081,1720347135733,-500.0,0.00045479,120]
[331405082,1720347135746,-500.0,0.00045479,120]
[331405083,1720347135756,-500.0,0.00045479,120]
[331405084,1720347135835,-1399.76,0.00045479,120]
[331405085,1720347135847,-1399.76,0.00045479,120]
[331405086,1720347135857,-1122.0,0.00045479,120]
[331405087,1720347135866,-1122.0,0.00045479,120]
[331405088,1720347135877,-500.0,0.00045479,120]
[331405089,1720347135887,-413.74,0.00045479,120]
[331405090,1720347135896,-1802.35,0.00045479,120]
[331405091,1720347135906,-1426.86,0.00045479,120]
[331405092,1720347135914,-500.0,0.00045479,120]
[331405093,1720347135924,-622.16,0.00045479,120]
[331405094,1720347135933,-500.0,0.00045479,120]
[331405095,1720347135944,-1266.29,0.00045479,120]
[331405096,1720347135954,-500.0,0.00045479,120]
[331405097,1720347135963,-500.0,0.00045479,120]
[331405098,1720347135973,-500.0,0.00045479,120]
[331405099,1720347135982,-500.0,0.00045479,120]
[331405100,1720347135992,-500.0,0.00045479,120]
[331405101,1720347136001,-626.78,0.00045479,120]
[331405102,1720347136011,-500.0,0.00045479,120]
[331405103,1720347136021,-500.0,0.00045479,120]
[331405104,1720347136030,-500.0,0.00045479,120]
[331405105,1720347136040,-500.0,0.00045479,120]
[331405106,1720347136050,-943.8,0.00045479,120]
[331405107,1720347136060,-500.0,0.00045479,120]
[331405108,1720347136069,-2629.96,0.00045479,120]
[331405109,1720347136078,-1281.3,0.00045479,120]
[331405110,1720347136088,-500.0,0.00045479,120]
[331405111,1720347136097,-414.99469046,0.00045479,120]
[331405112,1720347136107,-500.0,0.00045479,120]
[331405113,1720347136118,-304.61,0.00045479,120]
[331405114,1720347136129,-500.0,0.00045479,120]
[331405115,1720347136139,-174.43,0.00045479,120]
[331405116,1720347136148,-500.0,0.00045479,120]
[331405117,1720347136158,-749.98,0.00045479,120]
[331405118,1720347136167,-500.0,0.00045479,120]
[331405119,1720347136177,-686.76,0.00045479,120]
[331405120,1720347136187,-500.0,0.00045479,120]
[331405121,1720347136196,-1167.5,0.00045479,120]
[331405122,1720347136211,-818.05,0.00045479,120]
[331405123,1720347136221,-718.68,0.00045479,120]
[331405124,1720347136231,-2844.1,0.00045479,120]
[331405125,1720347136241,-500.0,0.00045479,21]
[331405126,1720347136251,-500.0,0.00045479,120]
[331405127,1720347136260,-500.0,0.00045479,120]
[331405128,1720347136270,-277.24,0.00045479,120]
[331405129,1720347136280,-500.0,0.00045479,120]
[331405130,1720347136289,-500.0,0.00045479,120]
[331405131,1720347136299,-500.0,0.00045479,120]
[331405132,1720347136308,-500.0,0.00045479,120]
[331405133,1720347136317,-500.0,0.00045479,120]
[331405134,1720347136327,-23870.39,0.00045479,120]
[331405135,1720347136336,-730.55,0.00045479,120]
[331405136,1720347136346,-150.42281844,0.00045487,30]
[331405137,1720347136355,-637.5,0.00045494,2]
[331405138,1720347136365,-1167.97586208,0.0004557,30]
[331405139,1720347136375,-1167.97586208,0.00045619,30]
[331405140,1720347136384,-167.32999782,0.00045683,30]
[331405141,1720347136393,-1045.05367777,0.00045703,30]
[331405142,1720347136403,-539.93,0.00045753,120]
[331405143,1720347136412,-863.71,0.00045753,120]
[331405144,1720347136421,-758.3,0.00045753,120]
[331405145,1720347136430,-2277.09,0.00045753,120]
[331405146,1720347136440,-500.0,0.00045753,120]
[331405147,1720347136450,-500.0,0.00045753,120]
[331405148,1720347136459,-3622.16,0.00045753,120]
[331405149,1720347136468,-500.0,0.00045753,120]
[331405150,1720347136478,-4420.68,0.00045753,120]
[331405151,1720347136488,-2729.24,0.00045753,120]
[331405152,1720347136497,-1418.25,0.00045753,120]
[331405153,1720347136507,-2088.03,0.00045753,120]
[331405154,1720347136516,-28020.05,0.00045753,120]
[331405155,1720347136526,-500.0,0.00045753,120]
[331405156,1720347136538,-500.0,0.00045753,120]
[331405157,1720347136548,-1928.91,0.00045753,120]
[331405158,1720347136558,-16482.27,0.00045753,120]
[331405159,1720347136568,-500.0,0.00045753,120]
[331405160,1720347136591,-500.0,0.00045753,120]
[331405161,1720347136600,-500.0,0.00045753,120]
[331405162,1720347136610,-1391.73,0.00045753,120]
[331405163,1720347136620,-980.42,0.00045753,120]
[331405164,1720347136629,-500.0,0.00045753,120]
[331405165,1720347136639,-717.05,0.00045753,60]
[331405166,1720347136649,-500.0,0.00045753,120]
[331405167,1720347136658,-1322.06,0.00045753,120]
[331405168,1720347136668,-1100.84,0.00045753,120]
[331405169,1720347136677,-544.99,0.00045753,120]
[331405170,1720347136686,-500.0,0.00045753,120]
[331405171,1720347136695,-1098.97,0.00045753,120]
[331405172,1720347136704,-1343.21,0.00045753,120]
[331405173,1720347136714,-500.0,0.00045753,120]
[331405174,1720347136724,-500.0,0.00045753,120]
[331405175,1720347136733,-505.31258009,0.00045753,120]
[331405176,1720347136743,-500.0,0.00045753,120]
[331405177,1720347136752,-500.0,0.00045753,120]
[331405178,1720347136762,-500.0,0.00045753,120]
[331405179,1720347136772,-500.0,0.00045753,120]
[331405180,1720347136782,-500.0,0.00045753,120]
[331405181,1720347136792,-500.0,0.00045753,120]
[331405182,1720347136806,-500.0,0.00045753,120]
[331405183,1720347136816,-933.38,0.00045753,120]
[331405184,1720347136826,-538.12,0.00045753,120]
[331405185,1720347136837,-500.0,0.00045753,120]
[331405186,1720347136847,-500.0,0.00045753,120]
[331405187,1720347136857,-500.0,0.00045753,120]
[331405188,1720347136866,-500.0,0.00045753,120]
[331405189,1720347136878,-281.63880606,0.00045753,120]
[331405190,1720347136888,-1587.98,0.00045753,120]
[331405191,1720347136898,-645.75,0.00045753,120]
[331405192,1720347136908,-500.0,0.00045753,120]
[331405193,1720347136918,-500.0,0.00045753,120]
[331405194,1720347136927,-1804.61,0.00045753,120]
[331405195,1720347136938,-500.0,0.00045753,120]
[331405196,1720347136947,-1400.55,0.00045753,120]
[331405197,1720347136957,-500.0,0.00045753,120]
[331405198,1720347136967,-764.78,0.00045753,120]
[331405199,1720347136976,-638.28,0.00045753,120]
[331405200,1720347136986,-500.0,0.00045753,120]
[331405201,1720347136996,-993.07,0.00045753,120]
[331405202,1720347137006,-500.0,0.00045753,120]
[331405203,1720347137015,-879.0,0.00045753,120]
[331405204,1720347137024,-1084.46,0.00045753,120]
[331405205,1720347137034,-2280.31,0.00045753,120]
[331405206,1720347137044,-1460.56,0.00045753,120]
[331405207,1720347137054,-500.0,0.00045753,120]
[331405208,1720347137063,-500.0,0.00045753,120]
[331405209,1720347137073,-1174.74,0.00045753,120]
[331405210,1720347137082,-506.68,0.00045753,120]
[331405211,1720347137092,-500.0,0.00045753,120]
[331405212,1720347137101,-500.0,0.00045753,120]
[331405213,1720347137111,-547.7,0.00045753,120]
[331405214,1720347137121,-500.0,0.00045753,120]
[331405215,1720347137131,-1275.26,0.00045753,120]
[331405216,1720347137139,-500.0,0.00045753,120]
[331405217,1720347137149,-620.89,0.00045753,120]
[331405218,1720347137158,-2777.24,0.00045753,120]
[331405219,1720347137167,-608.36,0.00045753,120]
[331405220,1720347137176,-500.0,0.00045753,120]
[331405221,1720347137187,-590.79,0.00045753,120]
[331405222,1720347137196,-500.0,0.00045753,120]
[331405223,1720347137205,-33955.97,0.00045753,120]
[331405224,1720347137214,-1229.15,0.00045753,120]
[331405225,1720347137224,-500.0,0.00045753,120]
[331405226,1720347137234,-620.32,0.00045753,120]
[331405227,1720347137243,-1166.72,0.00045753,120]
[331405228,1720347137253,-1466.22,0.00045753,120]
[331405229,1720347137262,-500.0,0.00045753,120]
[331405230,1720347137272,-529.53,0.00045753,120]
[331405231,1720347137281,-500.0,0.00045753,120]
[331405232,1720347137291,-500.0,0.00045753,120]
[331405233,1720347137301,-500.0,0.00045753,120]
[331405234,1720347137310,-1741.41,0.00045753,120]
[331405235,1720347137320,-500.0,0.00045753,120]
[331405236,1720347137330,-500.0,0.00045753,120]
[331405237,1720347137339,-266.28227341,0.00045753,120]
[331405238,1720347137349,-500.0,0.00045753,120]
[331405239,1720347137359,-1189.37,0.00045753,120]
[331405240,1720347137369,-500.0,0.00045753,120]
[331405241,1720347137379,-170.25295373,0.00045753,120]
[331405242,1720347137388,-500.0,0.00045753,120]
[331405243,1720347137398,-500.0,0.00045753,120]
[331405244,1720347137408,-500.0,0.00045753,120]
[331405245,1720347137418,-500.0,0.00045753,120]
[331405246,1720347137428,-844.82,0.00045753,120]
[331405247,1720347137439,-500.0,0.00045753,120]
[331405248,1720347137448,-500.0,0.00045753,120]
[331405249,1720347137458,-500.0,0.00045753,120]
[331405250,1720347137467,-1360.1,0.00045753,120]
[331405251,1720347137477,-731.34,0.00045753,120]
[331405252,1720347137487,-500.0,0.00045753,120]
[331405253,1720347137497,-500.0,0.00045753,120]
[331405254,1720347137506,-500.0,0.00045753,120]
[331405255,1720347137515,-500.0,0.00045753,120]
[331405256,1720347137524,-1170.99,0.00045753,120]
[331405257,1720347137534,-990.62,0.00045753,120]